fUSD/lending_fUSD_20260514
["ID","MTS","AMOUNT","RATE_DAILY","PERIOD"]
[422254485,1778767841000,-150.0,0.00014578,2]
[422254487,1778767841000,-150.0,0.00014595,2]
[422254490,1778767841000,-150.0,0.00014612,2]
[422254489,1778767841000,-150.0,0.00014612,2]
[422254494,1778767841000,-150.0,0.00014646,2]
[422254488,1778767841000,-150.0,0.00014612,2]
[422254491,1778767841000,-150.0,0.00014612,2]
[422254492,1778767841000,-150.0,0.00014629,2]
[422254493,1778767841000,-150.0,0.00014629,2]
[422254496,1778767841000,-150.0,0.0001468,2]
[422254495,1778767841000,-150.0,0.00014663,2]
[422254497,1778767841000,-150.0,0.00014687,2]
[422254522,1778767841000,-150.0,0.00014893,2]
[422254562,1778767841000,-500.0,0.00014999,2]
[422254526,1778767841000,-321.19301205,0.000149,2]
[422254544,1778767841000,-238.93933532,0.00014986,2]
[422254547,1778767841000,-292.40813059,0.00014986,2]
[422254554,1778767841000,-500.0,0.00014999,2]
[422254557,1778767841000,-500.0,0.00014999,2]
[422254564,1778767841000,-300.0,0.00014999,2]
[422254555,1778767841000,-500.0,0.00014999,2]
[422254553,1778767841000,-151.0,0.00014997,2]
[422254556,1778767841000,-500.0,0.00014999,2]
[422254558,1778767841000,-500.0,0.00014999,2]
[422254543,1778767841000,-178.11723745,0.00014986,2]
[422254560,1778767841000,-500.0,0.00014999,2]
[422254561,1778767841000,-500.0,0.00014999,2]
[422254563,1778767841000,-319.89781858,0.00014999,2]
[422254565,1778767841000,-300.0,0.00014999,2]
[422254566,1778767841000,-13710358.99942301,0.00015,2]
[422254567,1778767841000,-2075.94096564,0.00015,2]
[422254571,1778767841000,-1682.20121288,0.00015,2]
[422254569,1778767841000,-8081.766424,0.00015,2]
[422254568,1778767841000,-2531.85443811,0.00015,14]
[422254570,1778767841000,-4029416.27870388,0.00015,2]
[422254559,1778767841000,-500.0,0.00014999,2]
[422254551,1778767841000,-604.59168147,0.0001499,2]
[422254546,1778767841000,-150.0,0.00014986,2]
[422254548,1778767841000,-224.50300913,0.00014986,2]
[422254525,1778767841000,-25000.0,0.000149,3]
[422254520,1778767841000,-150.0,0.00014884,2]
[422254528,1778767841000,-16855.95571812,0.000149,2]
[422254527,1778767841000,-2500.0,0.000149,2]
[422254538,1778767841000,-10000.0,0.00014953,2]
[422254531,1778767841000,-10310.32911147,0.000149,2]
[422254534,1778767841000,-150.0,0.00014918,2]
[422254552,1778767841000,-604.59168147,0.0001499,2]
[422254530,1778767841000,-4518.99288082,0.000149,2]
[422254533,1778767841000,-150.0,0.00014915,2]
[422254536,1778767841000,-150.0,0.00014935,2]
[422254529,1778767841000,-2616.06927818,0.000149,2]
[422254549,1778767841000,-150.00000001,0.00014986,2]
[422254532,1778767841000,-150.0,0.00014901,2]
[422254550,1778767841000,-162.85603374,0.00014986,2]
[422254540,1778767841000,-150.0,0.00014969,2]
[422254523,1778767841000,-503.14513217,0.000149,2]
[422254542,1778767841000,-257.20275531,0.00014986,2]
[422254539,1778767841000,-601.0,0.00014959,2]
[422254535,1778767841000,-165.0519984,0.00014919,2]
[422254537,1778767841000,-150.0,0.00014952,2]
[422254541,1778767841000,-150.0,0.00014986,2]
[422254579,1778767842000,-398.02186045,0.00015,2]
[422254576,1778767842000,-20712.87600002,0.00015,2]
[422254575,1778767842000,-9377.82336353,0.00015,2]
[422254577,1778767842000,-5155.31062132,0.00015,2]
[422254574,1778767842000,-789.58,0.0001497,2]
[422254573,1778767842000,-789.58,0.00014696,2]
[422254572,1778767842000,-789.58,0.00014422,2]
[422254598,1778767843000,-263.95947654,0.00015,2]
[422254600,1778767843000,-788.61436096,0.00015,2]
[422254599,1778767843000,-722.8955016,0.00015,2]
[422254614,1778767846000,-1497.8,0.00015,2]
[422254613,1778767846000,-280.78750001,0.00015,2]
[422254616,1778767847000,-28240.55,0.00015,2]
[422254615,1778767847000,-2402.5346,0.00015,2]
[422254640,1778767882000,-398.02186045,0.000106,2]
[422254641,1778767905000,158.83,7.221e-05,2]
[422254645,1778767905000,158.83,8.681e-05,2]
[422254644,1778767905000,158.83,8.316e-05,2]
[422254643,1778767905000,158.83,7.951e-05,2]
[422254642,1778767905000,158.83,7.586e-05,2]
[422254646,1778767906000,158.83,9.046e-05,2]
[422254647,1778768032000,-158.83,9.411e-05,2]
[422254648,1778768032000,-37.17,9.777e-05,2]
[422254649,1778768250000,-121.66,9.777e-05,2]
[422254650,1778768366000,28.34,9.731e-05,2]
[422254651,1778768742000,189.55,7.574e-05,2]
[422254653,1778768781000,159.25,5.149e-05,2]
[422254652,1778768781000,159.25,4.795e-05,2]
[422254655,1778768782000,159.25,5.858e-05,2]
[422254654,1778768782000,159.25,5.504e-05,2]
[422254657,1778768782000,159.25,6.567e-05,2]
[422254656,1778768782000,159.25,6.213e-05,2]
[422254659,1778768783000,159.25,7.276e-05,2]
[422254660,1778768783000,23.05052284,7.63e-05,2]
[422254658,1778768783000,159.25,6.921e-05,2]
[422254662,1778768783000,159.25,7.985e-05,2]
[422254663,1778768783000,159.25,8.339e-05,2]
[422254661,1778768783000,136.19947716,7.63e-05,2]
[422254665,1778768784000,159.25,9.048e-05,2]
[422254664,1778768784000,159.25,8.693e-05,2]
[422254666,1778768893000,2000.0,9.099e-05,2]
[422254667,1778768941000,689.77,9.119e-05,2]
[422254669,1778768945000,-76.4980624,9.291e-05,2]
[422254668,1778768945000,-200.0,9.228e-05,2]
[422254696,1778769031000,-300.0,9.616e-05,2]
[422254695,1778769031000,-300.0,9.616e-05,2]
[422254699,1778769031000,-150.99,9.616e-05,2]
[422254694,1778769031000,-300.0,9.616e-05,2]
[422254701,1778769031000,-591.86802884,9.616e-05,2]
[422254704,1778769031000,-1866.56,9.616e-05,2]
[422254703,1778769031000,-700.444102,9.616e-05,2]
[422254697,1778769031000,-1200.0,9.616e-05,2]
[422254692,1778769031000,-150.0,9.524e-05,2]
[422254700,1778769031000,-8149.98711786,9.616e-05,2]
[422254693,1778769031000,-167.17,9.568e-05,2]
[422254691,1778769031000,-250.0,9.482e-05,2]
[422254688,1778769031000,-150.0,9.43e-05,2]
[422254689,1778769031000,-196.45945032,9.468e-05,2]
[422254687,1778769031000,-159.25,9.402e-05,2]
[422254685,1778769031000,-500.0,9.338e-05,2]
[422254686,1778769031000,-250.0,9.378e-05,2]
[422254683,1778769031000,-636.65095903,9.291e-05,2]
[422254684,1778769031000,-40.54344197,9.291e-05,2]
[422254690,1778769031000,-500.0,9.468e-05,2]
[422254702,1778769031000,-557.6907513,9.616e-05,2]
[422254698,1778769031000,-300.0,9.616e-05,2]
[422254705,1778769031000,-25989.7,9.616e-05,2]
[422254706,1778769031000,-19999.99,9.616e-05,2]
[422254725,1778769031000,-1036255.9194294,0.0001009,2]
[422254723,1778769031000,-196.40443146,0.0001008,2]
[422254722,1778769031000,-2069.27,0.00010027,2]
[422254724,1778769031000,-150.0,0.00010085,2]
[422254721,1778769031000,-303.63739543,9.992e-05,2]
[422254720,1778769031000,-196.45945031,9.99e-05,2]
[422254716,1778769031000,-150.0,9.728e-05,2]
[422254715,1778769031000,-280.0,9.71e-05,2]
[422254714,1778769031000,-9999.99,9.617e-05,2]
[422254727,1778769031000,-98500.14315657,0.0001009,2]
[422254718,1778769031000,-142.68,9.731e-05,2]
[422254717,1778769031000,-35606.02476895,9.73e-05,2]
[422254713,1778769031000,-9999.99,9.617e-05,2]
[422254712,1778769031000,-226.74,9.617e-05,2]
[422254711,1778769031000,-1627.61,9.617e-05,2]
[422254719,1778769031000,-196.45945031,9.779e-05,2]
[422254709,1778769031000,-999.99,9.617e-05,2]
[422254710,1778769031000,-9947.68,9.617e-05,2]
[422254707,1778769031000,-4999.99,9.616e-05,2]
[422254708,1778769031000,-150.0,9.617e-05,2]
[422254729,1778769032000,-113648.77942088,0.0001009,2]
[422254728,1778769032000,-29961.16111708,0.0001009,2]
[422254733,1778769032000,-8003.06038606,0.0001009,2]
[422254732,1778769032000,-2258.02280617,0.0001009,2]
[422254734,1778769032000,-546.17890492,0.0001009,2]
[422254730,1778769032000,-487.38503545,0.0001009,2]
[422254731,1778769032000,-589.0584,0.0001009,2]
[422254736,1778769032000,-400.0,0.0001009,2]
[422254739,1778769032000,-577.15688134,0.0001009,2]
[422254737,1778769032000,-717.79063966,0.0001009,2]
[422254738,1778769032000,-856.08682692,0.0001009,2]
[422254735,1778769032000,-3031.8631592,0.0001009,2]
[422254742,1778769037000,-500.0,0.00010089,2]
[422254743,1778769037000,-301.44831659,0.00010089,2]
[422254741,1778769037000,-192.26836103,0.00010089,2]
[422254760,1778769040000,-500.0,0.00010089,2]
[422254756,1778769040000,-17.50107322,0.00010089,2]
[422254757,1778769040000,-9.93601024,0.00010089,2]
[422254759,1778769040000,-500.0,0.00010089,2]
[422254755,1778769040000,-500.0,0.00010089,2]
[422254750,1778769040000,-294.06803833,0.00010089,2]
[422254754,1778769040000,-500.0,0.00010089,2]
[422254753,1778769040000,-322.71886731,0.00010089,2]
[422254751,1778769040000,-101.38449253,0.00010089,2]
[422254749,1778769040000,-198.55168341,0.00010089,2]
[422254761,1778769040000,-500.0,0.00010089,2]
[422254752,1778769040000,-398.61550747,0.00010089,2]
[422254772,1778769040000,-500.0,0.00010089,2]
[422254758,1778769040000,-316.07720833,0.00010089,2]
[422254762,1778769040000,-500.0,0.00010089,2]
[422254763,1778769040000,-500.0,0.00010089,2]
[422254774,1778769040000,-500.0,0.00010089,2]
[422254775,1778769040000,-500.0,0.00010089,2]
[422254770,1778769040000,-500.0,0.00010089,2]
[422254771,1778769040000,-500.0,0.00010089,2]
[422254768,1778769040000,-500.0,0.00010089,2]
[422254776,1778769040000,-509.8485107,0.00010089,2]
[422254766,1778769040000,-500.0,0.00010089,2]
[422254765,1778769040000,-500.0,0.00010089,2]
[422254767,1778769040000,-500.0,0.00010089,2]
[422254764,1778769040000,-500.0,0.00010089,2]
[422254769,1778769040000,-500.0,0.00010089,2]
[422254773,1778769040000,-500.0,0.00010089,2]
[422254838,1778769041000,-420.0,0.00010578,2]
[422254846,1778769041000,-255.0,0.00010701,2]
[422254833,1778769041000,-2257.67,0.000105,2]
[422254844,1778769041000,-954.61425479,0.00010602,2]
[422254836,1778769041000,-300.0,0.00010578,2]
[422254831,1778769041000,-2000.0,0.000105,2]
[422254842,1778769041000,-1680.0,0.00010578,2]
[422254828,1778769041000,-1122221.8619,0.000105,2]
[422254818,1778769041000,-9999.99,0.00010475,2]
[422254822,1778769041000,-30103.89,0.00010488,2]
[422254834,1778769041000,-2069.27,0.00010529,2]
[422254827,1778769041000,-11587.125,0.000105,2]
[422254840,1778769041000,-420.0,0.00010578,2]
[422254848,1778769041000,-500.0,0.00010773,2]
[422254865,1778769041000,-4527.20083886,0.00011099,2]
[422254850,1778769041000,-2069.27,0.00010779,2]
[422254853,1778769041000,-21015.69145448,0.000109,2]
[422254857,1778769041000,-150.0,0.00010959,2]
[422254861,1778769041000,-500.0,0.00011047,2]
[422254856,1778769041000,-162.1,0.00010937,2]
[422254867,1778769041000,-15012.44969147,0.00011099,2]
[422254873,1778769041000,-15012.4496914,0.00011237,2]
[422254875,1778769041000,-500.0,0.00011321,2]
[422254871,1778769041000,-356.47958291,0.00011181,2]
[422254869,1778769041000,-15012.4496914,0.00011099,2]
[422254860,1778769041000,-2069.27,0.0001103,2]
[422254877,1778769041000,-2000.0,0.00011374,2]
[422254863,1778769041000,-4527.20083887,0.00011099,2]
[422254824,1778769041000,-500.0,0.00010499,2]
[422254852,1778769041000,-21015.69145453,0.000109,2]
[422254820,1778769041000,-29999.99,0.00010475,2]
[422254786,1778769041000,-500.0,0.00010089,2]
[422254812,1778769041000,-88084.1606,0.00010399,2]
[422254880,1778769041000,-21015.69145448,0.00011394,2]
[422254781,1778769041000,-500.0,0.00010089,2]
[422254783,1778769041000,-386.00715523,0.00010089,2]
[422254782,1778769041000,-188.51693676,0.00010089,2]
[422254784,1778769041000,-500.0,0.00010089,2]
[422254777,1778769041000,-500.0,0.00010089,2]
[422254779,1778769041000,-500.0,0.00010089,2]
[422254780,1778769041000,-500.0,0.00010089,2]
[422254778,1778769041000,-500.0,0.00010089,2]
[422254785,1778769041000,-500.0,0.00010089,2]
[422254787,1778769041000,-612.26877207,0.00010089,2]
[422254789,1778769041000,-509.40541095,0.00010089,2]
[422254799,1778769041000,-1000.0,0.00010188,2]
[422254796,1778769041000,-162.1,0.00010103,2]
[422254816,1778769041000,-5000.0,0.000104,2]
[422254798,1778769041000,-150.0,0.00010174,2]
[422254788,1778769041000,-500.0,0.00010089,2]
[422254791,1778769041000,-500.0,0.00010089,2]
[422254790,1778769041000,-500.66539753,0.00010089,2]
[422254795,1778769041000,-4167.5984,0.00010092,2]
[422254793,1778769041000,-204167.39383635,0.0001009,2]
[422254792,1778769041000,-523.13820515,0.00010089,2]
[422254794,1778769041000,-6799.762,0.00010092,2]
[422254801,1778769041000,-1871.2249,0.0001019,2]
[422254805,1778769041000,-2069.27,0.00010278,2]
[422254806,1778769041000,-250.0,0.0001029,2]
[422254808,1778769041000,-2500.0,0.00010299,2]
[422254803,1778769041000,-2000.0,0.00010236,2]
[422254810,1778769041000,-163.17996719,0.00010347,2]
[422254814,1778769041000,-2038.89712882,0.000104,2]
[422254797,1778769041000,-150.0,0.00010154,2]
[422254884,1778769041000,-500.0,0.00011595,2]
[422254976,1778769041000,-150.0,0.00013488,2]
[422254888,1778769041000,-167.0,0.00011635,2]
[422254944,1778769041000,-500.0,0.00013425,2]
[422254939,1778769041000,-4527.20083886,0.000134,2]
[422254943,1778769041000,-175.41101549,0.00013425,2]
[422254952,1778769041000,-447.0,0.00013425,2]
[422254951,1778769041000,-447.0,0.00013425,2]
[422254963,1778769041000,-447.0,0.00013425,2]
[422254962,1778769041000,-447.0,0.00013425,2]
[422254953,1778769041000,-447.0,0.00013425,2]
[422254958,1778769041000,-447.0,0.00013425,2]
[422254959,1778769041000,-447.0,0.00013425,2]
[422254954,1778769041000,-447.0,0.00013425,2]
[422254957,1778769041000,-447.0,0.00013425,2]
[422254955,1778769041000,-447.0,0.00013425,2]
[422254956,1778769041000,-447.0,0.00013425,2]
[422254941,1778769041000,-500.0,0.00013425,2]
[422254960,1778769041000,-447.0,0.00013425,2]
[422254975,1778769041000,-150.0,0.00013488,2]
[422254964,1778769041000,-447.0,0.00013425,2]
[422254966,1778769041000,-447.0,0.00013425,2]
[422254967,1778769041000,-447.0,0.00013425,2]
[422254969,1778769041000,-150.0,0.00013488,2]
[422254974,1778769041000,-150.0,0.00013488,2]
[422254970,1778769041000,-150.0,0.00013488,2]
[422254971,1778769041000,-150.0,0.00013488,2]
[422254968,1778769041000,-447.0,0.00013425,2]
[422254972,1778769041000,-277.9039708,0.00013488,2]
[422254973,1778769041000,-150.0,0.00013488,2]
[422254978,1778769041000,-150.0,0.00013539,2]
[422254886,1778769041000,-587.0,0.00011635,2]
[422254977,1778769041000,-21015.69145448,0.00013498,2]
[422254965,1778769041000,-447.0,0.00013425,2]
[422254949,1778769041000,-298.59343092,0.00013425,2]
[422254961,1778769041000,-447.0,0.00013425,2]
[422254945,1778769041000,-150.0,0.00013425,2]
[422254892,1778769041000,-15012.4496914,0.0001176,2]
[422254947,1778769041000,-150.0,0.00013425,2]
[422254894,1778769041000,-162.1,0.00011771,2]
[422254890,1778769041000,-2351.0,0.00011635,2]
[422254901,1778769041000,-21015.69145448,0.00012095,2]
[422254903,1778769041000,-171.02,0.00012163,2]
[422254898,1778769041000,-10000.0,0.000118,2]
[422254896,1778769041000,-433.0,0.00011771,2]
[422254899,1778769041000,-4527.20083886,0.00011899,2]
[422254905,1778769041000,-401.87383575,0.00012276,2]
[422254908,1778769041000,-15012.4496914,0.00012283,2]
[422254919,1778769041000,-21015.69145448,0.00012797,2]
[422254921,1778769041000,-823.0,0.00012799,2]
[422254924,1778769041000,-3292.0,0.00012799,2]
[422254916,1778769041000,-954.61425477,0.00012751,2]
[422254882,1778769041000,-4527.20083886,0.00011399,2]
[422254911,1778769041000,-4527.20083886,0.00012399,2]
[422254926,1778769041000,-15012.4496914,0.00012807,2]
[422254940,1778769041000,-150.0,0.00013425,2]
[422254950,1778769041000,-447.0,0.00013425,2]
[422254948,1778769041000,-150.0,0.00013425,2]
[422254935,1778769041000,-736.0,0.00012948,2]
[422254937,1778769041000,-15012.4496914,0.0001333,2]
[422254933,1778769041000,-4527.20083886,0.000129,2]
[422254946,1778769041000,-592.04750986,0.00013425,2]
[422254931,1778769041000,-6642.16,0.0001288,2]
[422254913,1778769041000,-2000.0,0.00012511,2]
[422254909,1778769041000,-542.08,0.00012329,2]
[422254917,1778769041000,-689.77,0.00012767,2]
[422254927,1778769041000,-275.11,0.00012877,2]
[422254930,1778769041000,-6642.16,0.0001288,2]
[422255027,1778769042000,-500.0,0.00013698,2]
[422255025,1778769042000,-500.0,0.00013698,2]
[422255035,1778769042000,-500.0,0.00013698,2]
[422255036,1778769042000,-500.0,0.00013698,2]
[422255023,1778769042000,-229.10643658,0.00013698,2]
[422255030,1778769042000,-500.0,0.00013698,2]
[422255015,1778769042000,-500.0,0.00013698,2]
[422255022,1778769042000,-506.53569257,0.00013698,2]
[422255010,1778769042000,-500.0,0.00013698,2]
[422255011,1778769042000,-500.0,0.00013698,2]
[422255008,1778769042000,-500.0,0.00013698,2]
[422255026,1778769042000,-500.0,0.00013698,2]
[422255018,1778769042000,-500.0,0.00013698,2]
[422255024,1778769042000,-500.0,0.00013698,2]
[422255037,1778769042000,-500.0,0.00013698,2]
[422255039,1778769042000,-500.0,0.00013698,2]
[422255034,1778769042000,-500.0,0.00013698,2]
[422255028,1778769042000,-500.0,0.00013698,2]
[422255032,1778769042000,-500.0,0.00013698,2]
[422255033,1778769042000,-500.0,0.00013698,2]
[422255029,1778769042000,-500.0,0.00013698,2]
[422255051,1778769042000,-500.0,0.00013698,2]
[422255042,1778769042000,-500.0,0.00013698,2]
[422255045,1778769042000,-500.0,0.00013698,2]
[422255044,1778769042000,-500.0,0.00013698,2]
[422255038,1778769042000,-500.0,0.00013698,2]
[422255041,1778769042000,-500.0,0.00013698,2]
[422255040,1778769042000,-500.0,0.00013698,2]
[422255043,1778769042000,-500.0,0.00013698,2]
[422255006,1778769042000,-500.0,0.00013698,2]
[422255031,1778769042000,-506.12951293,0.00013698,2]
[422255020,1778769042000,-500.0,0.00013698,2]
[422254988,1778769042000,-500.0,0.00013698,2]
[422255021,1778769042000,-500.0,0.00013698,2]
[422255047,1778769042000,-500.0,0.00013698,2]
[422254989,1778769042000,-500.0,0.00013698,2]
[422254991,1778769042000,-500.0,0.00013698,2]
[422254990,1778769042000,-500.0,0.00013698,2]
[422254979,1778769042000,-150.0,0.00013591,2]
[422254983,1778769042000,-150.0,0.00013694,2]
[422254986,1778769042000,-500.0,0.00013698,2]
[422254980,1778769042000,-150.0,0.00013643,2]
[422254985,1778769042000,-500.0,0.00013698,2]
[422254981,1778769042000,-2000.0,0.00013648,2]
[422254984,1778769042000,-500.0,0.00013698,2]
[422254982,1778769042000,-150.0,0.00013675,2]
[422254987,1778769042000,-500.0,0.00013698,2]
[422254992,1778769042000,-500.0,0.00013698,2]
[422255013,1778769042000,-524.74495617,0.00013698,2]
[422254995,1778769042000,-500.0,0.00013698,2]
[422254996,1778769042000,-500.0,0.00013698,2]
[422254994,1778769042000,-500.0,0.00013698,2]
[422255003,1778769042000,-500.0,0.00013698,2]
[422254999,1778769042000,-500.0,0.00013698,2]
[422255005,1778769042000,-500.0,0.00013698,2]
[422255000,1778769042000,-500.0,0.00013698,2]
[422255002,1778769042000,-500.0,0.00013698,2]
[422254998,1778769042000,-500.0,0.00013698,2]
[422255004,1778769042000,-500.0,0.00013698,2]
[422254997,1778769042000,-500.0,0.00013698,2]
[422255001,1778769042000,-500.0,0.00013698,2]
[422255007,1778769042000,-500.0,0.00013698,2]
[422255017,1778769042000,-500.0,0.00013698,2]
[422255009,1778769042000,-249.29936447,0.00013698,2]
[422254993,1778769042000,-500.0,0.00013698,2]
[422255046,1778769042000,-500.0,0.00013698,2]
[422255126,1778769042000,-500.0,0.00013698,2]
[422255057,1778769042000,-509.2875148,0.00013698,2]
[422255095,1778769042000,-500.0,0.00013698,2]
[422255098,1778769042000,-500.0,0.00013698,2]
[422255096,1778769042000,-500.0,0.00013698,2]
[422255101,1778769042000,-500.0,0.00013698,2]
[422255102,1778769042000,-500.0,0.00013698,2]
[422255104,1778769042000,-500.0,0.00013698,2]
[422255103,1778769042000,-500.0,0.00013698,2]
[422255105,1778769042000,-500.0,0.00013698,2]
[422255106,1778769042000,-500.0,0.00013698,2]
[422255107,1778769042000,-500.0,0.00013698,2]
[422255114,1778769042000,-500.0,0.00013698,2]
[422255110,1778769042000,-520.29475132,0.00013698,2]
[422255108,1778769042000,-500.0,0.00013698,2]
[422255109,1778769042000,-500.0,0.00013698,2]
[422255092,1778769042000,-500.0,0.00013698,2]
[422255112,1778769042000,-500.0,0.00013698,2]
[422255115,1778769042000,-500.0,0.00013698,2]
[422255116,1778769042000,-353.4207141,0.00013698,2]
[422255118,1778769042000,-500.0,0.00013698,2]
[422255117,1778769042000,-500.0,0.00013698,2]
[422255125,1778769042000,-500.0,0.00013698,2]
[422255124,1778769042000,-500.0,0.00013698,2]
[422255120,1778769042000,-500.0,0.00013698,2]
[422255119,1778769042000,-500.0,0.00013698,2]
[422255127,1778769042000,-500.0,0.00013698,2]
[422255123,1778769042000,-500.0,0.00013698,2]
[422255128,1778769042000,-503.35448234,0.00013698,2]
[422255122,1778769042000,-500.0,0.00013698,2]
[422255121,1778769042000,-500.0,0.00013698,2]
[422255055,1778769042000,-500.0,0.00013698,2]
[422255113,1778769042000,-500.0,0.00013698,2]
[422255091,1778769042000,-500.0,0.00013698,2]
[422255111,1778769042000,-375.38526683,0.00013698,2]
[422255090,1778769042000,-500.0,0.00013698,2]
[422255076,1778769042000,-500.47540204,0.00013698,2]
[422255074,1778769042000,-500.0,0.00013698,2]
[422255072,1778769042000,-500.0,0.00013698,2]
[422255070,1778769042000,-501.57482876,0.00013698,2]
[422255069,1778769042000,-500.0,0.00013698,2]
[422255065,1778769042000,-500.0,0.00013698,2]
[422255083,1778769042000,-500.0,0.00013698,2]
[422255067,1778769042000,-500.0,0.00013698,2]
[422255060,1778769042000,-500.0,0.00013698,2]
[422255062,1778769042000,-500.0,0.00013698,2]
[422255063,1778769042000,-500.0,0.00013698,2]
[422255064,1778769042000,-500.0,0.00013698,2]
[422255097,1778769042000,-500.0,0.00013698,2]
[422255059,1778769042000,-500.0,0.00013698,2]
[422255068,1778769042000,-500.0,0.00013698,2]
[422255084,1778769042000,-500.0,0.00013698,2]
[422255066,1778769042000,-500.0,0.00013698,2]
[422255093,1778769042000,-500.0,0.00013698,2]
[422255094,1778769042000,-500.0,0.00013698,2]
[422255086,1778769042000,-500.0,0.00013698,2]
[422255088,1778769042000,-500.0,0.00013698,2]
[422255100,1778769042000,-500.0,0.00013698,2]
[422255099,1778769042000,-500.0,0.00013698,2]
[422255080,1778769042000,-500.0,0.00013698,2]
[422255087,1778769042000,-500.0,0.00013698,2]
[422255089,1778769042000,-500.0,0.00013698,2]
[422255085,1778769042000,-500.0,0.00013698,2]
[422255081,1778769042000,-500.0,0.00013698,2]
[422255077,1778769042000,-500.0,0.00013698,2]
[422255078,1778769042000,-500.0,0.00013698,2]
[422255082,1778769042000,-500.0,0.00013698,2]
[422255079,1778769042000,-500.0,0.00013698,2]
[422255182,1778769043000,-500.0,0.00013698,2]
[422255186,1778769043000,-500.0,0.00013698,2]
[422255171,1778769043000,-500.0,0.00013698,2]
[422255174,1778769043000,-500.0,0.00013698,2]
[422255183,1778769043000,-241.89256492,0.00013698,2]
[422255172,1778769043000,-500.0,0.00013698,2]
[422255168,1778769043000,-500.0,0.00013698,2]
[422255163,1778769043000,-500.0,0.00013698,2]
[422255165,1778769043000,-500.0,0.00013698,2]
[422255167,1778769043000,-500.0,0.00013698,2]
[422255162,1778769043000,-500.0,0.00013698,2]
[422255169,1778769043000,-500.0,0.00013698,2]
[422255173,1778769043000,-500.0,0.00013698,2]
[422255164,1778769043000,-500.0,0.00013698,2]
[422255175,1778769043000,-500.0,0.00013698,2]
[422255198,1778769043000,-2500.0,0.00013699,2]
[422255176,1778769043000,-500.0,0.00013698,2]
[422255177,1778769043000,-500.0,0.00013698,2]
[422255178,1778769043000,-500.0,0.00013698,2]
[422255179,1778769043000,-500.0,0.00013698,2]
[422255181,1778769043000,-500.0,0.00013698,2]
[422255188,1778769043000,-500.0,0.00013698,2]
[422255193,1778769043000,-500.0,0.00013698,2]
[422255197,1778769043000,-14253.66,0.00013699,2]
[422255195,1778769043000,-166.66,0.00013699,2]
[422255194,1778769043000,-619.09086971,0.00013698,2]
[422255200,1778769043000,-150.0,0.00013746,2]
[422255192,1778769043000,-500.0,0.00013698,2]
[422255196,1778769043000,-200.0,0.00013699,2]
[422255161,1778769043000,-500.0,0.00013698,2]
[422255180,1778769043000,-236.51228085,0.00013698,2]
[422255160,1778769043000,-500.0,0.00013698,2]
[422255129,1778769043000,-500.0,0.00013698,2]
[422255166,1778769043000,-500.0,0.00013698,2]
[422255190,1778769043000,-500.0,0.00013698,2]
[422255132,1778769043000,-500.0,0.00013698,2]
[422255131,1778769043000,-500.0,0.00013698,2]
[422255134,1778769043000,-500.0,0.00013698,2]
[422255135,1778769043000,-500.0,0.00013698,2]
[422255133,1778769043000,-500.0,0.00013698,2]
[422255136,1778769043000,-500.0,0.00013698,2]
[422255130,1778769043000,-500.0,0.00013698,2]